bitfinex/quotes_SOLUSD_20240626
["timestamp","ask_amount","ask_price","bid_price","bid_amount"]
[1719398018163,27.3181,136.65,136.59,18.3018]
[1719398018586,27.3181,136.65,136.61,7.32]
[1719398018775,7.69804292,136.68,136.59,6.6311]
[1719398018964,20.0,136.67,136.64,7.318]
[1719398019158,20.0,136.67,136.63,18.2973]
[1719398019159,7.317,136.67,136.63,25.6161]
[1719398019395,7.317,136.67,136.63,18.2973]
[1719398019891,7.317,136.67,136.63,25.6162]
[1719398020774,7.69804292,136.68,136.64,7.3181]
[1719398021086,20.0,136.67,136.64,7.3181]
[1719398021290,20.0,136.67,136.63,25.6161]
[1719398021796,20.0,136.67,136.64,7.3184]
[1719398022508,7.69804292,136.68,136.64,7.3184]
[1719398024713,7.69804292,136.68,136.65,7.3179]
[1719398025299,7.69804292,136.68,136.61,15.987]
[1719398025300,0.85452,136.69,136.68,7.3163]
[1719398027021,0.85452,136.69,136.67,18.292]
[1719398027721,0.85452,136.69,136.67,25.6085]
[1719398029710,0.85452,136.69,136.66,7.3172]
[1719398030095,0.85452,136.69,136.65,7.3178]
[1719398030297,7.3164,136.68,136.64,25.6134]
[1719398030513,0.85452,136.69,136.64,25.6134]
[1719398030514,8.17052,136.69,136.64,25.6134]
[1719398031015,8.17052,136.69,136.65,7.3178]
[1719398031616,0.85452,136.69,136.65,7.3178]
[1719398031998,8.17032,136.69,136.65,7.3178]
[1719398032199,0.85452,136.69,136.66,7.317]
[1719398033920,0.85452,136.69,136.67,7.3168]
[1719398035215,0.85452,136.69,136.66,25.6106]
[1719398036106,8.17042,136.69,136.63,18.2964]
[1719398036306,8.17042,136.69,136.65,7.3179]
[1719398036307,0.85452,136.69,136.65,7.3179]
[1719398037098,0.85452,136.69,136.66,7.3173]
[1719398040431,0.85452,136.69,136.67,7.3168]
[1719398040604,0.85452,136.69,136.65,18.2944]
[1719398040804,0.85452,136.69,136.65,25.6119]
[1719398042720,8.17032,136.69,136.65,25.6119]
[1719398043598,8.17032,136.69,136.65,18.2944]
[1719398044724,0.85452,136.69,136.62,24.3446]
[1719398044903,7.317,136.67,136.63,7.3189]
[1719398045303,7.3164,136.68,136.63,7.3189]
[1719398045505,7.3164,136.68,136.64,7.3182]
[1719398045705,23.73612,136.69,136.65,7.3179]
[1719398045906,20.0,136.68,136.65,7.3179]
[1719398046118,20.0,136.68,136.64,25.6143]
[1719398048232,27.3165,136.68,136.64,25.6143]
[1719398048735,8.17042,136.69,136.65,7.3176]
[1719398049033,0.85452,136.69,136.65,7.3176]
[1719398049408,0.85452,136.69,136.66,7.3171]
[1719398049823,0.85452,136.69,136.64,18.2961]
[1719398051435,8.17042,136.69,136.65,7.3178]
[1719398054437,0.85452,136.69,136.66,18.4631]
[1719398054618,0.85452,136.69,136.68,7.3163]
[1719398055535,0.85452,136.69,136.67,7.4867]
[1719398055755,0.85452,136.69,136.63,18.2966]
[1719398056040,0.85452,136.69,136.66,7.3174]
[1719398057732,0.85452,136.69,136.67,7.3167]
[1719398058239,0.85452,136.69,136.68,7.3163]
[1719398058419,0.85452,136.69,136.67,25.6088]
[1719398058837,0.85452,136.69,136.67,18.292]
[1719398059333,0.85452,136.69,136.68,7.3163]
[1719398059535,0.85452,136.69,136.68,7.6563]
[1719398061528,0.85452,136.69,136.68,7.4863]
[1719398061728,0.85452,136.69,136.68,7.3163]
[1719398063046,0.85452,136.69,136.68,7.6563]
[1719398065834,0.85452,136.69,136.68,9.11593121]
[1719398066742,0.85452,136.69,136.68,7.6563]
[1719398071737,0.85452,136.69,136.68,44.238]
[1719398073447,0.85452,136.69,136.68,7.6563]
[1719398074051,0.85452,136.69,136.68,0.17]
[1719398074235,0.85452,136.69,136.66,7.3172]
[1719398074957,0.85452,136.69,136.67,7.3166]
[1719398075339,0.85452,136.69,136.68,7.3163]
[1719398075843,0.85452,136.69,136.68,7.6563]
[1719398083738,0.85452,136.69,136.68,27.6563]
[1719398086039,0.85452,136.69,136.68,49.5202]
[1719398087165,7.3111,136.78,136.72,18.2854]
[1719398088357,7.3111,136.78,136.73,7.3135]
[1719398088550,6.9758207,136.81,136.74,18.2824]
[1719398088749,7.3101,136.8,136.75,7.6524]
[1719398088964,7.3101,136.8,136.75,7.4824]
[1719398089264,7.3105,136.79,136.74,25.5953]
[1719398089463,7.3112,136.78,136.74,18.2824]
[1719398090248,7.3112,136.78,136.74,25.5954]
[1719398091575,7.3117,136.77,136.72,7.3137]
[1719398092473,25.2499207,136.81,136.73,7.3135]
[1719398092765,7.3111,136.78,136.73,7.3135]
[1719398092947,7.3133,136.74,136.69,7.3157]
[1719398093145,16.133,136.76,136.68,18.2902]
[1719398093346,7.314,136.73,136.68,25.6065]
[1719398093547,20.0,136.75,136.68,18.2902]
[1719398093768,7.3138,136.73,136.68,25.6062]
[1719398094070,7.3135,136.74,136.69,7.3157]
[1719398094273,20.0,136.73,136.69,7.3157]
[1719398095461,27.3138,136.73,136.68,25.6064]
[1719398095852,27.3138,136.73,136.69,7.3158]
[1719398096060,20.0,136.73,136.69,7.3158]
[1719398097271,7.3127,136.75,136.7,7.3152]
[1719398097459,20.0,136.74,136.7,7.3152]
[1719398097659,27.3131,136.74,136.7,7.3152]
[1719398097859,20.0,136.74,136.7,7.3152]
[1719398098172,27.3129,136.75,136.7,7.3152]
[1719398098471,7.3131,136.74,136.7,7.3152]
[1719398098681,7.3138,136.73,136.68,18.2902]
[1719398098879,7.3138,136.73,136.68,25.6064]
[1719398100871,7.3159,136.69,136.65,25.6124]
[1719398101159,7.3159,136.69,136.65,18.2945]
[1719398101375,7.3159,136.69,136.65,25.6123]
[1719398101774,7.3154,136.7,136.65,25.6123]
[1719398102274,7.3159,136.69,136.64,7.3183]
[1719398102479,7.3164,136.68,136.64,7.3183]
[1719398103080,15.7826,136.71,136.59,18.3023]
[1719398103260,27.3158207,136.7,136.59,18.3023]
[1719398103452,7.3183,136.65,136.6,7.3204]
[1719398103961,27.3186,136.64,136.59,25.6233]
[1719398104556,27.3186,136.64,136.56,18.3064]
[1719398104557,20.0,136.64,136.56,18.3064]
[1719398104861,6.601,136.6,136.49,36.6326]
[1719398105067,7.3213,136.59,136.52,18.3116]
[1719398105285,6.601,136.6,136.52,25.636]
[1719398105286,20.0,136.58,136.52,25.636]
[1719398105493,20.0,136.58,136.52,25.6362]
[1719398105786,27.3218,136.58,136.52,18.3116]
[1719398105950,7.3218,136.58,136.52,18.3116]
[1719398106854,27.3213,136.59,136.52,18.3116]
[1719398107956,27.3213,136.59,136.54,7.3234]
[1719398108164,20.0,136.59,136.54,7.3234]
[1719398108362,20.0,136.59,136.55,7.3232]
[1719398108868,20.0,136.59,136.54,7.3237]
[1719398109052,27.3213,136.59,136.54,7.3237]
[1719398109247,13.9216,136.6,136.55,7.3232]
[1719398109480,6.98111869,136.63,136.53,36.9615]
[1719398109656,20.0,136.62,136.58,7.3216]
[1719398110372,14.30021869,136.63,136.58,7.3216]
[1719398110573,20.0,136.62,136.58,7.3216]
[1719398110974,6.98111869,136.63,136.59,7.3211]
[1719398111176,7.3179,136.66,136.58,18.3033]
[1719398111477,27.3179,136.65,136.6,7.3205]
[1719398111665,20.0,136.65,136.59,0.34]
[1719398112170,14.70656405,136.66,136.61,7.3199]
[1719398112560,7.38906405,136.66,136.62,7.3195]
[1719398112872,14.70646405,136.66,136.61,7.3199]
[1719398114276,14.70646405,136.66,136.62,7.3195]
[1719398114277,7.38906405,136.66,136.62,7.3195]
[1719398114459,7.61354201,136.68,136.64,7.3184]
[1719398114660,7.61354201,136.68,136.65,7.3179]
[1719398114859,14.70466405,136.7,136.65,7.3179]
[1719398115077,20.0,136.69,136.65,7.3179]
[1719398115272,20.0,136.69,136.64,7.3183]
[1719398115273,27.3159,136.69,136.64,7.3183]
[1719398116274,7.38906405,136.7,136.64,18.2955]
[1719398116459,7.38906405,136.7,136.66,7.3172]
[1719398117881,7.38906405,136.7,136.67,2.92312373]
[1719398118761,7.3152,136.71,136.67,2.92312373]
[1719398118955,7.3143,136.72,136.67,7.3168]
[1719398119174,20.0,136.71,136.67,7.3168]
[1719398120066,7.3156,136.7,136.66,18.2931]
[1719398120466,7.3159,136.69,136.65,0.34]
[1719398120783,7.3153,136.7,136.65,7.6579]
[1719398120970,27.3149,136.71,136.66,7.3173]
[1719398121480,7.3153,136.7,136.65,25.9523]
[1719398121675,7.3153,136.7,136.66,7.3173]
[1719398122066,27.3149,136.71,136.66,7.3173]
[1719398122263,25.67376405,136.73,136.67,7.3168]
[1719398122264,7.3143,136.72,136.67,7.3168]
[1719398122463,7.38906405,136.73,136.67,18.4613]
[1719398122778,14.70276405,136.73,136.68,0.17]
[1719398122982,7.38906405,136.73,136.68,0.34]
[1719398123372,14.70276405,136.73,136.69,7.3154]
[1719398123679,14.70276405,136.73,136.68,7.6561]
[1719398123885,14.70276405,136.73,136.69,7.3156]
[1719398124086,7.3133,136.74,136.69,7.3156]
[1719398126484,7.3142,136.72,136.68,7.6563]
[1719398126787,7.3149,136.71,136.68,0.34]
[1719398127486,7.3143,136.72,136.68,0.34]
[1719398128079,7.3143,136.72,136.68,7.6563]
[1719398128277,7.3138,136.73,136.68,7.6563]
[1719398128478,7.3138,136.73,136.69,7.3157]
[1719398128677,7.3132,136.74,136.69,7.3157]
[1719398129381,7.3138,136.73,136.68,7.6562]
[1719398130089,7.3132,136.74,136.69,7.3157]
[1719398131586,7.38906405,136.77,136.72,7.3141]
[1719398131789,14.70066405,136.77,136.72,7.3141]
[1719398131987,14.70066405,136.77,136.73,7.3136]
[1719398132292,7.3111,136.78,136.73,7.3136]
[1719398132479,7.3115,136.77,136.72,7.314]
[1719398132678,260.6,136.79,136.72,7.314]
[1719398132679,7.3121,136.76,136.72,7.314]
[1719398132883,260.6,136.79,136.71,25.6009]
[1719398133080,7.3127,136.75,136.72,0.17]
[1719398133285,293.86797353,136.79,136.7,0.34]
[1719398133467,18.279,136.77,136.7,0.34]
[1719398133671,20.0,136.76,136.69,7.3156]
[1719398133870,7.3136,136.73,136.68,25.7765]
[1719398134088,7.3136,136.73,136.69,0.17]
[1719398134393,7.3146,136.72,136.67,22.8587]
[1719398134575,34.6577,136.75,136.65,18.2937]
[1719398134771,20.0,136.74,136.65,18.2937]
[1719398134971,7.3153,136.7,136.65,25.6114]
[1719398135394,7.3146,136.72,136.65,18.2937]
[1719398135588,20.0,136.74,136.65,18.2937]
[1719398135892,7.3148,136.71,136.66,7.3173]
[1719398136393,7.3167,136.68,136.62,36.5958]
[1719398136691,7.3178,136.66,136.62,18.2979]
[1719398136869,7.3181,136.65,136.6,7.3205]
[1719398137068,7.318,136.65,136.59,18.3026]
[1719398137274,7.3175,136.66,136.61,7.3196]
[1719398137481,18.2901,136.69,136.59,18.3026]
[1719398137682,20.0,136.68,136.59,18.3026]
[1719398137870,7.3175,136.66,136.61,7.32]
[1719398138267,20.0,136.68,136.59,36.6044]
[1719398138491,27.3159,136.69,136.64,7.3181]
[1719398138792,20.0,136.69,136.65,7.3179]
[1719398138971,20.0,136.69,136.65,7.3178]
[1719398140093,27.3158,136.69,136.64,7.3183]
[1719398140679,20.0,136.69,136.65,7.3179]
[1719398141280,7.3153,136.7,136.65,7.3179]
[1719398141685,7.3149,136.71,136.66,7.3173]
[1719398141890,34.6284,136.73,136.67,0.17]
[1719398141891,16.3437,136.73,136.67,0.17]
[1719398142091,20.0,136.72,136.66,0.17]
[1719398142400,7.3153,136.7,136.66,7.6573]
[1719398142692,20.0,136.72,136.67,7.3167]
[1719398142693,27.3145,136.72,136.67,7.3167]
[1719398142877,20.0,136.72,136.68,7.3159]
[1719398143596,7.3133,136.74,136.69,7.3156]
[1719398143799,20.0,136.73,136.67,18.2917]
[1719398143982,7.3144,136.72,136.67,18.2917]
[1719398144184,20.0,136.75,136.67,18.2917]
[1719398144398,7.3137,136.73,136.68,7.316]
[1719398144977,7.3132,136.74,136.69,7.3155]
[1719398145196,20.0,136.73,136.69,7.3155]
[1719398145379,27.3137,136.73,136.69,7.3155]
[1719398145701,27.3137,136.73,136.68,7.4862]
[1719398146099,7.3143,136.72,136.68,7.4862]
[1719398146290,7.3143,136.72,136.67,25.6085]
[1719398148375,18.2831,136.74,136.64,18.2952]
[1719398148581,7.3161,136.69,136.65,7.3178]
[1719398148883,0.17,136.75,136.64,25.6135]
[1719398148884,7.3163,136.68,136.64,25.6135]
[1719398149105,18.2858,136.72,136.64,25.6135]
[1719398149287,7.316,136.69,136.64,25.6135]
[1719398149610,7.3154,136.7,136.65,7.3178]
[1719398150901,7.3154,136.7,136.66,7.3174]
[1719398151199,7.3158,136.69,136.65,7.3178]
[1719398151787,7.3154,136.7,136.65,7.3178]
[1719398152502,7.3154,136.7,136.66,7.3172]
[1719398152805,20.0,136.71,136.67,7.3167]
[1719398152985,7.3144,136.72,136.67,7.3167]
[1719398153209,20.0,136.71,136.67,7.3167]
[1719398153503,7.3137,136.73,136.69,7.3157]
[1719398153713,7.3144,136.72,136.68,25.6069]
[1719398153919,7.3147,136.71,136.68,18.2906]
[1719398154118,7.3147,136.71,136.66,7.3173]
[1719398154399,7.3147,136.71,136.67,0.17]
[1719398154590,7.3153,136.7,136.66,7.3173]
[1719398155990,7.3158,136.69,136.65,25.9518]
[1719398156301,18.283,136.74,136.65,18.464]
[1719398156599,7.3153,136.7,136.66,7.3173]
[1719398157289,7.3167,136.68,136.64,7.3184]
[1719398157692,7.3158,136.7,136.65,7.82210403]
[1719398157885,7.3159,136.69,136.65,7.3178]
[1719398158086,18.2857,136.72,136.64,25.6142]
[1719398158286,20.0,136.71,136.64,25.6142]
[1719398158994,7.3159,136.69,136.64,25.6142]
[1719398159786,7.3155,136.7,136.65,7.3177]
[1719398159985,7.3158,136.69,136.65,7.3177]
[1719398160406,7.3154,136.7,136.65,7.3177]
[1719398161223,27.3148,136.71,136.66,7.3173]
[1719398161930,20.0,136.71,136.66,18.2929]
[1719398162231,20.0,136.71,136.68,7.316]
[1719398162401,20.0,136.72,136.68,7.316]
[1719398162599,20.0,136.72,136.67,7.3167]
[1719398162807,27.3147,136.72,136.67,7.3168]
[1719398163014,7.3151,136.71,136.66,25.7799]
[1719398163324,20.0,136.7,136.66,25.7799]
[1719398163624,25.67261056,136.73,136.63,18.2967]
[1719398163820,7.316,136.69,136.64,7.3183]
[1719398164193,20.0,136.72,136.64,7.3183]
[1719398164194,7.3164,136.68,136.64,7.3183]
[1719398164400,7.3172,136.67,136.62,13.872]
[1719398164601,20.0,136.72,136.62,13.872]
[1719398164602,16.6245,136.7,136.62,6.5528]
[1719398165015,7.3187,136.64,136.61,16.2818]
[1719398165221,7.3191,136.63,136.61,16.2818]
[1719398165627,7.3185,136.64,136.61,16.2818]
[1719398166034,0.17,136.68,136.61,16.2818]
[1719398166035,7.3177,136.66,136.61,16.2818]
[1719398166524,7.3179,136.65,136.61,23.6017]
[1719398166908,7.3185,136.64,136.61,16.2818]
[1719398167410,7.3204,136.61,136.58,7.60678151]
[1719398167732,7.3204,136.61,136.55,15.3379]
[1719398167733,7.3206,136.6,136.55,22.6611]
[1719398168032,7.3212,136.59,136.55,22.6611]
[1719398168193,7.3212,136.59,136.55,15.3379]
[1719398168522,7.3207,136.6,136.55,22.6611]
[1719398168899,40.92911056,136.65,136.56,18.3056]
[1719398169109,7.3197,136.62,136.57,7.3218]
[1719398169529,40.92911056,136.65,136.56,25.6282]
[1719398169714,20.0,136.64,136.56,25.6282]
[1719398170339,7.3202,136.61,136.56,25.6282]
[1719398170630,7.3201,136.61,136.56,25.6282]
[1719398171734,7.3201,136.61,136.57,7.3221]
[1719398172330,40.92911056,136.65,136.58,7.3216]
[1719398172331,7.3193,136.63,136.58,7.3216]
[1719398173337,7.38821056,136.65,136.59,0.17]
[1719398173635,14.70651056,136.65,136.61,7.32]
[1719398174217,7.38821056,136.65,136.62,7.3195]
[1719398174535,7.3175,136.66,136.62,7.3195]
[1719398175100,7.317,136.67,136.62,7.3195]
[1719398175332,7.3164,136.68,136.63,7.3186]
[1719398175530,7.38821056,136.69,136.64,7.3181]
[1719398175531,14.70441056,136.69,136.64,7.3181]
[1719398176127,7.38821056,136.69,136.65,7.3176]
[1719398176445,7.38821056,136.69,136.65,8.63473295]
[1719398176605,14.70411056,136.69,136.64,25.6137]
[1719398176807,7.3164,136.68,136.64,25.6137]
[1719398177132,7.3164,136.68,136.64,18.2954]
[1719398177431,14.70421056,136.69,136.64,25.6136]
[1719398179042,14.70421056,136.69,136.65,7.3179]
[1719398179423,14.70421056,136.69,136.64,25.6137]
[1719398179737,7.38821056,136.69,136.63,7.6588]
[1719398180039,7.3165,136.68,136.63,7.3188]
[1719398180707,7.3168,136.67,136.63,7.3188]
[1719398180910,7.3168,136.67,136.62,7.3193]
[1719398181634,7.3174,136.66,136.62,7.3193]
[1719398181836,7.318,136.65,136.61,15.2976]
[1719398182040,7.318,136.65,136.61,22.6176]
[1719398182336,7.318,136.65,136.61,15.2976]
[1719398182639,7.3176,136.66,136.61,15.2976]
[1719398182809,7.317,136.67,136.62,7.3195]
[1719398183254,7.317,136.67,136.61,15.2976]
[1719398183255,7.317,136.67,136.63,7.3189]
[1719398183742,7.3175,136.66,136.62,7.3195]
[1719398184844,7.38821056,136.69,136.61,15.2976]
[1719398184845,7.3188,136.64,136.61,15.2976]
[1719398185026,7.3176,136.66,136.61,22.6176]
[1719398186022,7.317,136.67,136.62,7.3195]
[1719398186350,7.38821056,136.69,136.63,7.319]
[1719398186543,7.38821056,136.69,136.64,0.34]
[1719398187156,7.3163,136.69,136.64,18.6358]
[1719398187440,7.317,136.67,136.62,7.3192]
[1719398187647,7.317,136.67,136.63,0.34]
[1719398188228,7.3185,136.64,136.61,15.2976]
[1719398188433,7.3181,136.65,136.61,15.2976]
[1719398189032,7.3181,136.65,136.61,22.6176]
[1719398189738,7.3181,136.65,136.61,15.2976]
[1719398189944,7.3185,136.64,136.61,15.2976]
[1719398190432,18.2911,136.68,136.61,15.2976]
[1719398190433,7.3181,136.65,136.61,15.2976]
[1719398194463,7.3185,136.64,136.61,15.2976]
[1719398194761,7.3181,136.65,136.61,15.2976]
[1719398195636,7.3181,136.65,136.61,22.6175]
[1719398195833,7.3174,136.66,136.62,7.3195]
[1719398196154,7.3169,136.67,136.62,7.3195]
[1719398196337,7.3169,136.67,136.63,7.319]
[1719398196947,7.3169,136.67,136.62,25.618]
[1719398197154,7.3174,136.66,136.62,25.618]
[1719398197670,7.3179,136.65,136.62,18.2987]
[1719398197840,7.3179,136.65,136.61,15.4676]
[1719398198280,7.3185,136.64,136.61,15.4676]
[1719398199367,7.3185,136.64,136.61,15.2976]
[1719398199782,15.7943,136.67,136.57,16.0398]
[1719398199961,7.3203,136.61,136.57,23.3616]
[1719398200548,7.3196,136.62,136.57,23.3616]
[1719398200764,7.3196,136.62,136.58,7.3217]
[1719398200974,7.3192,136.63,136.58,7.3217]
[1719398201147,7.3192,136.63,136.59,7.3211]
[1719398201666,7.3192,136.63,136.58,25.6256]
[1719398202060,7.3196,136.62,136.58,25.6256]
[1719398203863,7.3192,136.63,136.59,7.3211]
[1719398204947,7.3184,136.65,136.6,7.3205]
[1719398206381,7.3185,136.64,136.6,7.3205]
[1719398208782,7.319,136.63,136.58,18.3041]
[1719398209087,7.319,136.63,136.58,25.6257]
[1719398209796,7.319,136.63,136.59,7.3211]
[1719398210767,7.3186,136.64,136.59,7.3211]
[1719398211777,7.3181,136.65,136.6,18.3011]
[1719398211952,7.38821056,136.66,136.6,18.3011]
[1719398212162,14.91519546,136.68,136.64,7.3184]
[1719398212380,7.3164,136.68,136.64,7.3184]
[1719398214588,7.3164,136.68,136.63,7.3189]
[1719398214886,7.3169,136.67,136.63,7.3189]
[1719398215358,18.2901,136.69,136.62,22.2551]
[1719398215558,7.3185,136.64,136.62,22.2551]
[1719398215964,7.3185,136.64,136.62,15.8122]
[1719398216169,22.5391,136.67,136.57,15.4371]
[1719398216468,27.72821056,136.66,136.55,6.1655]
[1719398216771,7.3228,136.56,136.54,15.4371]
[1719398218174,7.3224,136.57,136.54,15.4371]
[1719398221002,7.3228,136.56,136.51,30.1678]
[1719398221386,7.3223,136.57,136.52,7.3249]
[1719398222001,7.3212,136.59,136.55,7.3232]
[1719398222174,7.3212,136.59,136.54,7.3237]
[1719398222375,7.3218,136.58,136.54,7.3237]
[1719398223101,23.40771056,136.61,136.51,22.8425]
[1719398223102,6.4556,136.6,136.51,22.8425]
[1719398223396,25.69311056,136.58,136.48,7.3266]
[1719398223588,7.324,136.54,136.49,7.3265]
[1719398223785,7.324,136.54,136.5,7.3259]
[1719398224167,7.3234,136.55,136.5,7.3259]
[1719398224373,7.3239,136.54,136.49,7.3263]
[1719398224573,7.3253,136.52,136.48,18.3174]
[1719398225097,7.3256,136.51,136.47,28.7509]
[1719398225704,7.325,136.52,136.47,7.3272]
[1719398225887,7.325,136.52,136.48,7.327]
[1719398226403,7.3239,136.54,136.49,7.3265]
[1719398226580,7.3239,136.54,136.5,7.3259]
[1719398227078,7.3239,136.54,136.49,7.3263]
[1719398228100,7.3239,136.54,136.5,7.3259]
[1719398228898,7.3239,136.54,136.49,7.3264]
[1719398229202,7.3244,136.53,136.49,7.3264]
[1719398229901,7.3244,136.53,136.48,7.3268]
[1719398230778,7.325,136.52,136.48,7.3268]
[1719398231272,7.3243,136.54,136.49,7.3265]
[1719398231482,7.3245,136.53,136.48,7.3269]
[1719398231682,7.325,136.52,136.48,7.3269]
[1719398232299,18.3087,136.55,136.45,21.8647]
[1719398232601,7.3265,136.49,136.45,21.8647]
[1719398232790,7.3261,136.5,136.46,0.34]
[1719398233102,7.3265,136.49,136.45,21.8647]
[1719398233403,7.3266,136.49,136.45,21.8647]
[1719398233603,7.327,136.48,136.45,21.8647]
[1719398233782,7.60972336,136.52,136.45,21.8647]
[1719398233977,7.3267,136.49,136.45,21.8647]
[1719398234174,7.3267,136.49,136.45,23.074]
[1719398236175,7.3267,136.49,136.44,25.6511]
[1719398236383,34.2238,136.51,136.42,6.6384]
[1719398236581,7.3279,136.47,136.42,13.9683]
[1719398236981,7.3279,136.47,136.42,15.43139143]
[1719398237704,7.3261,136.5,136.45,7.3281]
[1719398238334,7.38821056,136.51,136.44,7.3291]
[1719398238512,7.3271,136.48,136.44,7.3291]
[1719398238991,7.3267,136.49,136.44,7.3291]
[1719398239597,7.326,136.5,136.45,7.3285]
[1719398239809,7.3244,136.53,136.48,7.3267]
[1719398240501,7.324,136.54,136.49,7.3264]
[1719398240712,7.38821056,136.55,136.52,7.3248]
[1719398241199,7.38821056,136.55,136.48,6.1774]
[1719398241200,7.3217,136.58,136.53,18.3104]
[1719398241507,7.3218,136.58,136.53,25.6344]
[1719398241893,7.3225,136.57,136.53,18.3104]
[1719398242396,7.38821056,136.58,136.51,0.17]
[1719398242601,7.38821056,136.58,136.51,7.4953]
[1719398242789,7.38821056,136.58,136.52,7.3247]
[1719398242993,7.3223,136.57,136.53,7.3243]
[1719398243193,7.38821056,136.58,136.53,7.3243]
[1719398243711,7.38821056,136.58,136.52,18.3118]
[1719398243712,14.70991056,136.58,136.54,7.3238]
[1719398244283,14.70991056,136.58,136.53,23.422]
[1719398244495,7.3223,136.57,136.53,23.422]
[1719398244915,7.3223,136.57,136.53,16.0978]
[1719398245407,7.3229,136.56,136.53,16.0978]
[1719398245704,7.3223,136.57,136.53,16.0978]
[1719398245904,14.71001056,136.58,136.53,23.422]
[1719398246115,7.3225,136.57,136.53,16.0978]
[1719398246289,14.71001056,136.58,136.53,23.422]
[1719398247100,7.3222,136.57,136.53,23.422]
[1719398248506,7.3228,136.56,136.53,16.0978]
[1719398249010,14.71001056,136.58,136.53,23.4219]
[1719398249605,7.38821056,136.58,136.54,18.3093]
[1719398250288,7.3207,136.6,136.54,18.3093]
[1719398251108,7.3207,136.6,136.54,24.4987]
[1719398251417,7.3207,136.6,136.55,7.3231]
[1719398251600,7.3212,136.59,136.55,7.3231]
[1719398251804,7.3212,136.59,136.54,31.8223]
[1719398254108,7.3217,136.58,136.54,31.8223]
[1719398254299,25.68741056,136.62,136.54,6.1894]
[1719398254502,7.3226,136.57,136.53,16.0978]
[1719398254811,7.3227,136.56,136.53,16.0978]
[1719398256921,7.3224,136.57,136.53,16.0978]
[1719398257418,15.17229632,136.61,136.55,7.3233]
[1719398257419,15.00229632,136.61,136.55,7.3233]
[1719398257613,20.0,136.6,136.55,7.3233]
[1719398258215,7.3216,136.59,136.54,7.3237]
[1719398258714,7.3218,136.58,136.54,7.3237]
[1719398260213,7.3222,136.57,136.53,41.7323]
[1719398261620,7.3222,136.57,136.53,34.4081]
[1719398261916,20.0,136.6,136.53,16.0978]
[1719398261917,38.3019,136.6,136.53,16.0978]
[1719398262108,18.3048,136.58,136.51,6.0838]
[1719398262513,7.3234,136.55,136.51,6.0838]
[1719398262813,7.3244,136.53,136.51,6.0838]
[1719398263015,18.3048,136.58,136.51,6.0838]
[1719398263413,7.3242,136.54,136.51,6.0838]
[1719398267906,7.3235,136.55,136.51,6.0838]
[1719398270215,7.3241,136.54,136.51,6.0838]
[1719398270425,7.3241,136.54,136.5,33.8204]
[1719398271796,7.3235,136.55,136.5,41.1463]
[1719398272428,7.3229,136.56,136.51,7.3254]
[1719398272923,7.3234,136.55,136.51,7.3254]
[1719398276824,25.92001331,136.58,136.5,33.8204]
[1719398276825,7.324,136.54,136.5,41.1462]
[1719398277201,7.3234,136.55,136.5,41.1462]
[1719398277703,7.3226,136.57,136.5,33.8204]
[1719398277913,7.323,136.56,136.51,0.34]
[1719398278109,7.3235,136.55,136.5,41.1463]
[1719398278509,7.3235,136.55,136.51,7.3254]
[1719398280131,7.3235,136.55,136.5,41.1462]
[1719398281831,7.3238,136.54,136.5,41.1462]